fUST/lending_fUST_20260302
["ID","MTS","AMOUNT","RATE_DAILY","PERIOD"]
[407002793,1772446239793,-500.0,0.00013699,2]
[407002795,1772446239807,-500.0,0.00013699,2]
[407002797,1772446239816,-500.0,0.00013699,2]
[407002799,1772446239827,-500.0,0.00013699,2]
[407002801,1772446239836,-500.0,0.00013699,2]
[407002803,1772446239846,-500.0,0.00013699,2]
[407002805,1772446239854,-500.0,0.00013699,2]
[407002807,1772446239863,-412.23483991,0.00013699,2]
[407002809,1772446239873,-173.15746284,0.00013699,2]
[407002811,1772446239882,-500.0,0.00013699,2]
[407002813,1772446239891,-150.0,0.000137,2]
[407002815,1772446239900,-410.65404319,0.00013819,2]
[407002817,1772446239909,-397.15932617,0.0001382,2]
[407002819,1772446239919,-500.0,0.0001382,2]
[407002821,1772446239928,-500.0,0.00013821,2]
[407002823,1772446239938,-1000.0,0.00013821,2]
[407002825,1772446239947,-1000.0,0.00013821,2]
[407002827,1772446239956,-503.08394896,0.00013821,2]
[407002829,1772446239966,-1000.0,0.00013821,2]
[407002831,1772446239975,-1000.0,0.00013821,2]
[407002833,1772446239985,-861.38337492,0.00013821,2]
[407002835,1772446239994,-1000.0,0.00013821,2]
[407002837,1772446240005,-1000.0,0.00013821,2]
[407002839,1772446240014,-500.0,0.00013821,2]
[407002841,1772446240024,-1000.0,0.00013821,2]
[407002843,1772446240034,-1000.0,0.00013821,2]
[407002845,1772446240043,-1000.0,0.00013821,2]
[407002847,1772446240053,-1001.06326991,0.00013821,2]
[407002849,1772446240062,-1000.0,0.00013821,2]
[407002851,1772446240071,-1000.0,0.00013821,2]
[407002853,1772446240081,-1003.64653305,0.00013821,2]
[407002855,1772446240090,-1000.0,0.00013821,2]
[407002857,1772446240099,-1000.0,0.00013821,2]
[407002859,1772446240109,-490.8618976,0.00013821,2]
[407002861,1772446240119,-500.0,0.00013995,2]
[407002863,1772446240128,-205.29,0.00013995,2]
[407002865,1772446240137,-205.29,0.00013995,2]
[407002867,1772446240146,-500.0,0.00014095,2]
[407002869,1772446240156,-500.0,0.00014174,2]
[407002871,1772446240165,-500.0,0.00014174,2]
[407002873,1772446240174,-454.84981725,0.00014174,2]
[407002875,1772446240184,-568.78055669,0.00014243,2]
[407002877,1772446240193,-500.0,0.00014274,2]
[407002879,1772446240201,-500.0,0.00014368,2]
[407002882,1772446240211,-1000.0,0.00014368,2]
[407002884,1772446240220,-500.0,0.00014374,2]
[407002886,1772446240233,-500.0,0.00014374,2]
[407002888,1772446240244,-410.65404319,0.00014467,2]
[407002890,1772446240253,-500.0,0.00014642,2]
[407002893,1772446240263,-568.78055669,0.00014887,2]
[407002896,1772446240272,-500.0,0.00014916,2]
[407002899,1772446240282,-432.0,0.00015174,2]
[407002901,1772446240292,-739.0,0.00015174,2]
[407002903,1772446240301,-500.0,0.0001519,2]
[407002904,1772446240310,-500.0,0.00015464,2]
[407002906,1772446240319,-151.0,0.00015485,2]
[407002908,1772446240329,-151.0,0.00015485,2]
[407002911,1772446240341,-151.0,0.00015485,2]
[407002912,1772446240351,-151.0,0.00015485,2]
[407002914,1772446240360,-151.0,0.00015485,2]
[407002916,1772446240369,-151.0,0.00015485,2]
[407002918,1772446240380,-151.0,0.00015485,2]
[407002920,1772446240391,-151.0,0.00015485,2]
[407002922,1772446240402,-151.0,0.00015485,2]
[407002924,1772446240414,-151.0,0.00015485,2]
[407002927,1772446240423,-154.04416148,0.00015485,2]
[407002929,1772446240432,-568.78055669,0.0001553,2]
[407002931,1772446240440,-150.0,0.00015552,2]
[407002933,1772446240450,-152.996566,0.00015629,2]
[407002935,1772446240459,-150.572,0.00015698,2]
[407002937,1772446240468,-250.0,0.00015698,2]
[407002939,1772446240478,-259.927,0.00015698,2]
[407002941,1772446240487,-150.245,0.00015698,2]
[407002943,1772446240496,-500.0,0.00015738,2]
[407002945,1772446240505,-224.32275391,0.000158,2]
[407002947,1772446240515,-590.61360248,0.000158,2]
[407002949,1772446240524,-611.14172722,0.000158,2]
[407002951,1772446240533,-174.13805863,0.000158,2]
[407002953,1772446240543,-196.87120082,0.000158,2]
[407002955,1772446240552,-179.491,0.00015912,2]
[407002957,1772446240561,-500.0,0.00016,2]
[407002959,1772446240571,-302.8579806,0.00016011,2]
[407002961,1772446240581,-391.66878295,0.00016012,2]
[407002963,1772446240590,-505.34972815,0.00016055,2]
[407002965,1772446240599,-500.0,0.00016076,2]
[407002967,1772446240609,-500.0,0.00016076,2]
[407002969,1772446240619,-11350.9834334,0.00016077,2]
[407002971,1772446240628,-13942.3978072,0.00016077,2]
[407002973,1772446240637,-850.7181578,0.00016116,2]
[407002975,1772446240646,-568.78055669,0.00016174,2]
[407002977,1772446240655,-448.0105893,0.00016191,2]
[407002979,1772446240665,-151.0,0.000162,2]
[407002981,1772446240675,-500.0,0.00016235,2]
[407002983,1772446240684,-500.0,0.00016235,2]
[407002985,1772446240693,-1084487.68328221,0.00016236,2]
[407002987,1772446240707,-10653.1402446,0.00016236,2]
[407003000,1772446240823,-4248.32795475,0.00016236,2]
[407003047,1772446243570,-410.65404319,0.00015115,2]
[407003049,1772446243580,-2398.4119403,0.00015485,2]
[407003051,1772446243590,-2487.15318209,0.00016033,2]
[407003052,1772446243600,-55533.17700321,0.00016236,2]
[407003058,1772446247139,-26102.6700552,0.00016236,2]
[407003059,1772446247157,-159155.7899701,0.00016236,2]
[407003155,1772446564519,168.9333,6.851e-05,2]
[407003278,1772447431669,-330.49,0.000108,2]
[407003280,1772447431682,-169.51,0.000108,2]
[407003282,1772447431691,-500.0,0.000108,2]
[407003283,1772447431700,-500.0,0.000108,2]
[407003284,1772447431710,-747.19077124,0.00012438,2]
[407003285,1772447431721,-179.347116,0.00013191,2]
[407003286,1772447431732,-1200.0,0.00013271,2]
[407003287,1772447431742,-300.0,0.00013271,2]
[407003288,1772447431751,-300.0,0.00013272,2]
[407003289,1772447431761,-500.0,0.00013273,2]
[407003290,1772447431770,-500.0,0.00013273,2]
[407003291,1772447431780,-413.80928703,0.00013273,2]
[407003292,1772447431790,-502.31565215,0.00013273,2]
[407003293,1772447431801,-500.0,0.00013273,2]
[407003294,1772447431811,-500.0,0.00013273,2]
[407003295,1772447431820,-500.0,0.00013273,2]
[407003296,1772447431830,-500.0,0.00013273,2]
[407003297,1772447431839,-500.0,0.00013273,2]
[407003298,1772447431849,-500.0,0.00013273,2]
[407003299,1772447431859,-1029.92374177,0.00013273,2]
[407003300,1772447431868,-500.0,0.00013273,2]
[407003301,1772447431877,-500.0,0.00013273,2]
[407003302,1772447431886,-500.0,0.00013273,2]
[407003303,1772447431896,-540.34315658,0.00013273,2]
[407003304,1772447431905,-500.0,0.00013273,2]
[407003305,1772447431914,-500.0,0.00013273,2]
[407003306,1772447431924,-500.0,0.00013273,2]
[407003307,1772447431933,-500.0,0.00013273,2]
[407003308,1772447431943,-500.0,0.00013273,2]
[407003309,1772447431953,-250.0,0.00013649,2]
[407003310,1772447431963,-300.0,0.00013673,2]
[407003311,1772447431973,-500.0,0.00013698,2]
[407003312,1772447431982,-500.0,0.00013698,2]
[407003313,1772447431991,-500.0,0.00013698,2]
[407003314,1772447432001,-557.89808785,0.00013699,2]
[407003315,1772447432010,-324.68772448,0.00013699,2]
[407003316,1772447432019,-500.63691761,0.00013699,2]
[407003317,1772447432028,-500.0,0.00013699,2]
[407003318,1772447432038,-500.0,0.0001382,2]
[407003319,1772447432047,-1000.0,0.00013821,2]
[407003320,1772447432057,-500.0,0.00013868,2]
[407003321,1772447432067,-1509.0382168,0.00013869,2]
[407003322,1772447432076,-500.0,0.00014174,2]
[407003323,1772447432085,-3734.38060179,0.00014175,2]
[407003324,1772447432101,-1000.0,0.00014247,2]
[407003325,1772447432114,-325.75904333,0.0001427,2]
[407003326,1772447432123,-500.0,0.00014367,2]
[407003327,1772447432133,-523.16473336,0.00014367,2]
[407003328,1772447432142,-500.0,0.00014367,2]
[407003329,1772447432151,-640.95283425,0.00014367,2]
[407003330,1772447432160,-500.0,0.00014367,2]
[407003331,1772447432170,-500.0,0.00014367,2]
[407003332,1772447432180,-500.0,0.00014367,2]
[407003333,1772447432190,-500.0,0.00014367,2]
[407003334,1772447432199,-500.0,0.00014367,2]
[407003335,1772447432208,-500.0,0.00014367,2]
[407003336,1772447432229,-500.0,0.00014367,2]
[407003337,1772447432240,-621.63920618,0.00014367,2]
[407003338,1772447432251,-500.0,0.00014367,2]
[407003339,1772447432261,-500.0,0.00014367,2]
[407003340,1772447432271,-500.0,0.00014367,2]
[407003341,1772447432281,-500.0,0.00014367,2]
[407003342,1772447432291,-500.0,0.00014367,2]
[407003343,1772447432301,-326.43721667,0.00014367,2]
[407003344,1772447432311,-500.0,0.00014367,2]
[407003345,1772447432321,-500.0,0.00014367,2]
[407003346,1772447432331,-500.0,0.00014367,2]
[407003347,1772447432340,-500.0,0.00014367,2]
[407003348,1772447432350,-500.0,0.00014367,2]
[407003349,1772447432360,-450.0,0.00014367,2]
[407003350,1772447432369,-500.0,0.00014367,2]
[407003351,1772447432379,-500.0,0.00014367,2]
[407003352,1772447432390,-500.0,0.00014367,2]
[407003353,1772447432400,-500.0,0.00014367,2]
[407003354,1772447432411,-500.0,0.00014368,2]
[407003355,1772447432421,-226.41391193,0.00014374,2]
[407003356,1772447432431,-780.8375148,0.00014435,2]
[407003357,1772447432443,-205.32702163,0.00014543,2]
[407003358,1772447432453,-1680.0,0.00014598,2]
[407003359,1772447432463,-1093.161764,0.00014648,2]
[407003360,1772447432473,-165.06032074,0.00014795,2]
[407003361,1772447432484,-205.32702159,0.00015113,2]
[407003362,1772447432494,-500.0,0.00015171,2]
[407003363,1772447432504,-290.06435317,0.00015393,2]
[407003364,1772447432513,-6328.47131545,0.00015398,2]
[407003365,1772447432523,-2398.4119403,0.00015444,2]
[407003366,1772447432533,-454.7864972,0.00015629,2]
[407003367,1772447432544,-205.32702159,0.00015682,2]
[407003368,1772447432554,-150.0,0.00015781,2]
[407003369,1772447432563,-150.0,0.00015836,2]
[407003370,1772447432573,-178.24,0.00015911,2]
[407003371,1772447432583,-2487.15318209,0.00015992,2]
[407003372,1772447432593,-201.9053204,0.00016011,2]
[407003373,1772447432603,-220.74992935,0.00016011,2]
[407003374,1772447432613,-397.34987284,0.00016011,2]
[407003375,1772447432623,-706.39977393,0.00016011,2]
[407003376,1772447432632,-2196.1390131,0.00016023,2]
[407003377,1772447432642,-500.0,0.00016076,2]
[407003378,1772447432651,-500.0,0.00016076,2]
[407003379,1772447432661,-500.0,0.0001614,2]
[407003380,1772447432672,-3609.91,0.0001619,3]
[407003381,1772447432682,-2136.85,0.0001619,3]
[407003382,1772447432691,-1068.43,0.0001619,3]
[407003383,1772447432701,-534.21,0.0001619,3]
[407003384,1772447432711,-445.18,0.0001619,3]
[407003385,1772447432727,-222.59,0.0001619,3]
[407003386,1772447432739,-667.78,0.0001619,3]
[407003387,1772447432749,-500.0,0.00016199,2]
[407003388,1772447432759,-500.0,0.00016199,2]
[407003389,1772447432773,-500.0,0.00016199,2]
[407003390,1772447432783,-500.0,0.00016199,2]
[407003391,1772447432795,-425.00373778,0.00016199,2]
[407003392,1772447432804,-60.05287907,0.00016199,2]
[407003393,1772447432838,-439.94712093,0.00016199,2]
[407003394,1772447432848,-500.0,0.00016199,2]
[407003395,1772447432858,-500.0,0.00016199,2]
[407003396,1772447432868,-468.24781666,0.00016199,2]
[407003397,1772447432878,-1260.94140121,0.000162,2]
[407003643,1772447440378,-1466.49628027,0.000162,2]
[407003905,1772447442950,-881.98299552,0.000162,2]
[407004177,1772447445719,-44566.7404317,0.000162,2]
[407004180,1772447445736,-8025.17483751,0.000162,2]
[407004185,1772447445781,-68373.85242581,0.000162,2]
[407004480,1772448003655,150.73,9.5e-05,2]
[407004605,1772448631728,-1744.52839776,0.0001051,2]
[407004617,1772448637916,-1289.70641936,0.0001051,2]
[407004618,1772448637927,-1965.76518288,0.0001051,2]
[407004619,1772448637937,-1200.0,0.00010615,2]
[407004620,1772448637947,-1857.55173387,0.00010616,2]
[407004621,1772448637959,-925.27105417,0.00010616,2]
[407004829,1772448640455,-467.09992443,0.00010616,2]
[407005225,1772448644574,-1750.07728753,0.00010616,2]
[407005227,1772448644584,-569.0,0.00010616,2]
[407005229,1772448644594,-200.21,0.0001062,2]
[407005231,1772448644604,-3275.1847788,0.00010723,2]
[407005243,1772448644703,-424.8152212,0.00010723,2]
[407005245,1772448644713,-300.0,0.0001083,2]
[407005247,1772448644724,-211.24394931,0.0001083,2]
[407005249,1772448644736,-88.75605069,0.0001083,2]
[407005251,1772448644747,-300.0,0.0001083,2]
[407005253,1772448644757,-275.35026475,0.00010886,2]
[407005255,1772448644767,-107.88368677,0.00011856,2]
[407005366,1772448645915,-4548.70509823,0.00011856,2]
[407005368,1772448645929,-17245.89861247,0.00012357,2]
[407005370,1772448645949,-195.884746,0.00012357,2]
[407005372,1772448645961,-1240.65223768,0.00012602,2]
[407005374,1772448645971,-171.10585135,0.000129,2]
[407005375,1772448645980,-221.02440063,0.00013273,2]
[407005377,1772448645989,-12519.19513302,0.00013318,2]
[407005380,1772448646000,-171.10585132,0.00013512,2]
[407005381,1772448646011,-195.884746,0.00013657,2]
[407005383,1772448646021,-500.0,0.00013698,2]
[407005385,1772448646030,-503.39901529,0.00013698,2]
[407005387,1772448646039,-2736.3692292,0.00013699,2]
[407005389,1772448646048,-176.54051885,0.00013699,2]
[407005391,1772448646057,-562.58016899,0.00013868,2]
[407005393,1772448646067,-5798.47,0.00013868,2]
[407005395,1772448646077,-500.0,0.00013868,2]
[407005397,1772448646086,-500.0,0.00013868,2]
[407005399,1772448646097,-437.81474425,0.00014539,7]
[407005401,1772448646108,-500.0,0.00014643,2]
[407005404,1772448646118,-171.10585132,0.00014766,2]
[407005407,1772448646128,-195.884746,0.00014958,2]
[407005409,1772448646138,-5798.47,0.00015171,2]
[407005411,1772448646148,-1009.31926897,0.00015417,2]
[407005413,1772448646157,-196.0612856,0.00015611,2]
[407005414,1772448646167,-201.9053204,0.00016011,2]
[407005416,1772448646177,-168.39081528,0.00016011,2]
[407005418,1772448646190,-171.10585132,0.00016021,2]
[407005420,1772448646200,-500.0,0.00016075,2]
[407005422,1772448646209,-3011.5671387,0.00016086,2]
[407005424,1772448646219,-247.06,0.00016189,3]
[407005426,1772448646228,-741.22,0.00016189,3]
[407005428,1772448646237,-1317.67,0.0001619,3]
[407005430,1772448646246,-1976.51,0.0001619,3]
[407005432,1772448646254,-988.25,0.0001619,3]
[407005433,1772448646265,-494.13,0.0001619,3]
[407005435,1772448646274,-5798.47,0.00016199,2]
[407005437,1772448646284,-5798.47,0.00016199,2]
[407005439,1772448646293,-5207.64938917,0.00016199,2]
[407005442,1772448646306,-590.82061083,0.00016199,2]
[407005444,1772448646317,-5798.47,0.00016199,2]
[407005446,1772448646327,-5798.47,0.00016199,2]
[407005448,1772448646336,-5798.47,0.00016199,2]
[407005450,1772448646346,-5798.47,0.00016199,2]
[407005452,1772448646361,-5798.47,0.00016199,2]
[407005454,1772448646371,-5798.47,0.00016199,2]
[407005456,1772448646380,-103.43981751,0.00016199,2]
[407005458,1772448646393,-5695.03018249,0.00016199,2]
[407005460,1772448646403,-5798.47,0.00016199,2]
[407005462,1772448646412,-5798.47,0.00016199,2]
[407005464,1772448646423,-5798.47,0.00016199,2]
[407005466,1772448646432,-500.0,0.00016199,2]
[407005468,1772448646442,-500.0,0.00016199,2]
[407005471,1772448646452,-163.88617469,0.00016199,2]
[407005472,1772448646462,-32794.22223257,0.000162,2]
[407005797,1772448849438,420.45584547,0.000158,120]
[407005901,1772449262490,-339.36,0.0001275,2]
[407005927,1772449333635,1502.90608696,0.0001,2]
[407005928,1772449341923,290.72874381,0.0001,2]
[407005929,1772449357759,150.0,9e-05,2]
[407006123,1772449838152,-5000.0,0.00011885,2]
[407006125,1772449838161,-572.260004,0.00012005,2]
[407006127,1772449838171,-5000.0,0.00012126,2]
[407006129,1772449838180,-150.0,0.00012187,2]
[407006131,1772449838190,-349.44752875,0.000125,5]
[407006133,1772449838200,-300.0,0.00013008,2]
[407006135,1772449838210,-500.0,0.00013009,2]
[407006137,1772449838219,-500.0,0.00013009,2]
[407006139,1772449838228,-157.39466435,0.00013009,2]
[407006141,1772449838238,-500.0,0.00013273,2]
[407006143,1772449838247,-1000.0,0.00013821,2]
[407006145,1772449838257,-1228.11826499,0.00014368,2]
[407006147,1772449838267,-338.46442133,0.00014539,7]
[407006149,1772449838276,-156.2232175,0.0001473,2]
[407006151,1772449838285,-546.580882,0.00015124,2]
[407006153,1772449838295,-158.08824723,0.00015225,2]
[407006155,1772449838304,-455.232,0.00015667,2]
[407006157,1772449838314,-2398.4119403,0.00015696,2]
[407006159,1772449838324,-1278.09628873,0.000157,2]
[407006161,1772449838334,-5422.9759431,0.00015705,2]
[407006163,1772449838344,-500.0,0.00015799,2]
[407006165,1772449838354,-500.0,0.00015799,2]
[407006167,1772449838363,-500.0,0.00015799,2]
[407006170,1772449838376,-500.0,0.00015799,2]
[407006172,1772449838385,-500.0,0.00015799,2]
[407006174,1772449838394,-500.0,0.00015799,2]
[407006176,1772449838404,-500.0,0.00015799,2]
[407006178,1772449838413,-500.0,0.00015799,2]
[407006180,1772449838423,-402.69463106,0.00015799,2]
[407006182,1772449838432,-500.0,0.00015799,2]
[407006184,1772449838443,-500.0,0.00015799,2]
[407006186,1772449838456,-564.59658526,0.00015799,2]
[407006188,1772449838466,-500.0,0.00015799,2]
[407006190,1772449838476,-500.0,0.00015799,2]
[407006192,1772449838487,-500.0,0.00015799,2]
[407006194,1772449838496,-500.0,0.00015799,2]
[407006196,1772449838506,-500.0,0.00015799,2]
[407006198,1772449838515,-500.0,0.00015799,2]
[407006200,1772449838526,-500.0,0.00015799,2]
[407006202,1772449838536,-500.0,0.00015799,2]
[407006204,1772449838546,-500.0,0.00015799,2]
[407006207,1772449838556,-500.0,0.00015799,2]
[407006209,1772449838565,-500.0,0.00015799,2]
[407006211,1772449838574,-1701.974508,0.000158,2]
[407006213,1772449838588,-4274.65261395,0.000158,2]
[407006215,1772449838598,-160.2,0.000158,2]
[407006217,1772449838608,-152.30402675,0.000158,2]
[407006219,1772449838618,-150.0,0.00015922,2]
[407006221,1772449838628,-150.0,0.00015922,2]
[407006223,1772449838638,-150.0,0.00015922,2]
[407006225,1772449838647,-181.08010149,0.00015969,2]
[407006227,1772449838657,-187.78006525,0.00015969,2]
[407006229,1772449838666,-194.72792766,0.00015969,2]
[407006231,1772449838677,-201.93286099,0.00015969,2]
[407006233,1772449838686,-209.40437684,0.00015969,2]
[407006235,1772449838696,-217.15233878,0.00015969,2]
[407006237,1772449838706,-359.40429503,0.00015969,2]
[407006239,1772449838716,-289.90916485,0.00015969,2]
[407006241,1772449838726,-181.08010149,0.00015969,2]
[407006243,1772449838736,-599.60298508,0.00015969,2]
[407006245,1772449838745,-170.27926874,0.00015977,2]
[407006247,1772449838754,-150.0,0.00015977,2]
[407006249,1772449838764,-201.9053204,0.00016011,2]
[407006251,1772449838773,-202.38,0.0001609,2]
[407006253,1772449838783,-303.1034675,0.00016149,2]
[407006255,1772449838792,-538.31175827,0.00016149,2]
[407006257,1772449838802,-179.49,0.00016159,2]
[407006259,1772449838811,-1684.62,0.0001619,3]
[407006261,1772449838821,-1082.98,0.0001619,3]
[407006263,1772449838831,-541.49,0.0001619,3]
[407006265,1772449838840,-270.74,0.0001619,3]
[407006267,1772449838849,-812.25,0.0001619,3]
[407006269,1772449838858,-327.77347166,0.00016199,2]
[407006271,1772449838868,-61133.26702864,0.000162,2]
[407006274,1772449838893,-572.260004,0.000162,2]
[407006422,1772449840580,-28186.9690012,0.000162,2]
[407006688,1772449843156,-4897.14740515,0.00016038,2]
[407006954,1772449846050,-102.85259485,0.00016038,2]
[407006957,1772449846065,-8319.79090759,0.000162,2]
[407006963,1772449846117,-1872.93,0.000162,2]
[407006968,1772449846159,-9281.9733839,0.000162,2]
[407006971,1772449846174,-463.98451705,0.00016209,2]
[407006973,1772449846190,-151.0,0.00016209,2]
[407006975,1772449846206,-151.0,0.00016209,2]
[407006978,1772449846221,-151.0,0.00016209,2]
[407006981,1772449846235,-151.0,0.00016209,2]
[407006983,1772449846250,-151.0,0.00016209,2]
[407006986,1772449846264,-151.0,0.00016209,2]
[407006989,1772449846278,-293.63289127,0.00016209,2]
[407006994,1772449846293,-151.0,0.00016231,2]
[407006997,1772449846307,-151.0,0.00016231,2]
[407007002,1772449846322,-3325.96784957,0.00016236,2]
[407007605,1772450404256,163.39,9.5e-05,2]
[407007606,1772450404426,163.39,9.8e-05,2]
[407007607,1772450424318,1533.57,0.0001001,2]
[407007608,1772450433830,5000.0,0.0001001,2]
[407007609,1772450441382,5000.0,0.0001001,2]
[407007611,1772450464067,5000.0,0.0001001,2]
[407007612,1772450486925,5000.0,0.0001001,2]
[407007613,1772450509054,5000.0,0.0001001,2]
[407007687,1772450691045,-163.39,0.000101,2]
[407007688,1772450691071,-562.0,0.00010167,2]
[407007689,1772450691099,-150.0,0.00010219,2]
[407007690,1772450691124,-163.39,0.000105,2]
[407007691,1772450691146,-503.11105466,0.000108,2]
[407007808,1772451032534,-1301.03087839,0.00012879,2]
[407007810,1772451032544,-602.0,0.00012879,2]
[407007812,1772451032553,-672.26165729,0.00013009,2]
[407007814,1772451032563,-500.0,0.00013273,2]
[407007816,1772451032573,-500.0,0.00013273,2]
[407007818,1772451032582,-500.0,0.00013273,2]
[407007820,1772451032592,-500.0,0.00013273,2]
[407007822,1772451032601,-500.0,0.00013273,2]
[407007824,1772451032611,-500.0,0.00013273,2]
[407007826,1772451032620,-105.20876661,0.00013273,2]
[407007950,1772451038353,-394.79123339,0.00013273,2]
[407007952,1772451038363,-7024.2381276,0.00013273,2]
[407007954,1772451038372,-500.0,0.00013273,2]
[407007956,1772451038381,-500.0,0.00013273,2]
[407007958,1772451038391,-402.38093363,0.00013273,2]
[407007960,1772451038400,-583.40936768,0.00013273,2]
[407007962,1772451038409,-500.0,0.00013273,2]
[407007965,1772451038419,-500.0,0.00013273,2]
[407007968,1772451038428,-500.0,0.00013698,2]
[407007970,1772451038437,-2487.15318209,0.00015406,2]
[407007972,1772451038447,-196.0612856,0.00015552,2]
[407007974,1772451038456,-1128.42988633,0.00015996,2]
[407007976,1772451038465,-150.0,0.00015999,2]
[407007978,1772451038474,-3145.5868767,0.00016,2]
[407007980,1772451038483,-264.29473994,0.00016054,2]
[407007982,1772451038492,-1142.67,0.00016074,2]
[407007984,1772451038503,-171.10585132,0.00016088,2]
[407007986,1772451038512,-447.10489487,0.00016174,2]
[407008728,1772451046272,-880.60659941,0.00016012,2]
[407008729,1772451046321,-4119.39340059,0.00016012,2]
[407008730,1772451046331,-4303.25010185,0.00016174,2]
[407009046,1772451630034,189.38,9.501e-05,2]
[407009060,1772451875772,3436.7891464,0.0001001,2]
[407009099,1772452207159,189.36,9.5e-05,2]
[407009129,1772452232302,-1071.458,0.00012497,2]
[407009130,1772452232356,-327.0,0.00012497,2]
[407009181,1772452238440,-2720.93540059,0.00012497,2]
[407009183,1772452238450,-150.0,0.00012929,2]
[407009185,1772452238459,-500.0,0.00013273,2]
[407009187,1772452238468,-564.73445026,0.00013273,2]
[407009189,1772452238479,-99.50504986,0.00013698,2]
[407009192,1772452238489,-995.55495014,0.00013698,2]
[407009194,1772452238499,-638.61662508,0.00013821,2]
[407009196,1772452238507,-819.272494,0.00014661,2]
[407009198,1772452238517,-300.0,0.00014687,2]
[407009200,1772452238526,-177.0,0.00014929,2]
[407009202,1772452238535,-89.56782228,0.00015183,2]
[407009824,1772452245297,-210.43217772,0.00015183,2]
[407009825,1772452245309,-709.91705664,0.00015184,2]
[407009832,1772452245397,-770.10650806,0.00015184,2]
[407009834,1772452245407,-168.0,0.00015349,2]
[407009835,1772452245417,-151.0,0.00015409,2]
[407009837,1772452245426,-151.0,0.00015409,2]
[407009838,1772452245435,-152.71794829,0.00015409,2]
[407009840,1772452245444,-181.08010149,0.00015409,2]
[407009842,1772452245455,-187.78006525,0.00015409,2]
[407009843,1772452245464,-194.72792766,0.00015409,2]
[407009845,1772452245473,-201.93286099,0.00015409,2]
[407009847,1772452245482,-209.40437684,0.00015409,2]
[407009848,1772452245492,-217.15233878,0.00015409,2]
[407009850,1772452245501,-225.18697532,0.00015409,2]
[407009852,1772452245510,-233.51889341,0.00015409,2]
[407009854,1772452245519,-242.15909246,0.00015409,2]
[407009856,1772452245528,-251.11897888,0.00015409,2]
[407009858,1772452245537,-260.4103811,0.00015409,2]
[407009860,1772452245547,-270.0455652,0.00015409,2]
[407009862,1772452245556,-280.03725112,0.00015409,2]
[407009865,1772452245565,-410.46190662,0.00015409,2]
[407009867,1772452245574,-168.0,0.00015528,2]
[407009870,1772452245583,-228.43,0.0001559,2]
[407009871,1772452245592,-454.7864972,0.00015612,2]
[407009873,1772452245601,-168.0,0.00015617,2]
[407009874,1772452245611,-168.0,0.00015693,2]
[407009877,1772452245620,-168.0,0.00015775,2]
[407009879,1772452245629,-228.43,0.0001586,2]
[407009882,1772452245639,-515.0,0.00015902,2]
[407009884,1772452245647,-621.0,0.00015902,2]
[407009885,1772452245656,-2371.07813541,0.00015902,2]
[407009936,1772452246361,-161.9005376,0.00016059,2]
[407009937,1772452246371,-168.0,0.00016094,2]
[407009939,1772452246381,-228.43,0.0001613,2]
[407009941,1772452246390,-1095.06,0.00016143,2]
[407009942,1772452246399,-166.62403001,0.00016173,2]
[407009944,1772452246408,-637.0,0.00016212,2]
[407009945,1772452246417,-1387.0,0.00016212,2]
[407009947,1772452246426,-2183.0,0.00016212,2]
[407009949,1772452246436,-1165.34169479,0.0001622,2]
[407009950,1772452246445,-168.0,0.00016233,2]
[407009952,1772452246455,-229.44143016,0.00016235,2]
[407009954,1772452246464,-500.0,0.00016235,2]